bitfinex/quotes_ETHUSD_20250726
["timestamp","ask_amount","ask_price","bid_price","bid_amount"]
[1753515809131,0.9225,3748.6,3748.4,0.001]
[1753515809335,1.7277,3748.5,3748.4,0.001]
[1753515809518,1.7277,3748.5,3748.4,2.414]
[1753515809719,0.8072,3748.5,3748.4,5.08180493]
[1753515809894,1.7277,3748.5,3748.4,5.08180493]
[1753515810295,0.002,3748.6,3748.5,2.66773376]
[1753515810597,0.002,3748.6,3748.5,3.59571109]
[1753515810809,0.002,3748.6,3748.5,7.41866081]
[1753515811026,0.002,3748.6,3748.5,7.39198348]
[1753515812418,0.002,3748.6,3748.5,6.93378348]
[1753515818954,1e-08,3748.6,3748.5,10.39198348]
[1753515819168,1e-08,3748.8,3748.7,2.66759143]
[1753515819462,1e-08,3748.8,3748.7,5.08059143]
[1753515819753,1e-08,3748.8,3748.7,6.11549143]
[1753515821138,1e-08,3748.8,3748.7,4.50289143]
[1753515821424,1e-08,3748.8,3748.7,9.91489143]
[1753515822153,1e-08,3748.9,3748.8,2.66752027]
[1753515822359,1e-08,3748.9,3748.8,3.56882027]
[1753515824739,1e-08,3748.9,3748.8,3.11062027]
[1753515826426,1e-08,3748.9,3748.8,3.56882027]
[1753515826940,1e-08,3748.9,3748.8,3.59549547]
[1753515827162,1e-08,3748.9,3748.8,3.56882027]
[1753515828835,1e-08,3748.9,3748.8,3.11062027]
[1753515829039,0.47840001,3748.9,3748.8,2.66752027]
[1753515831970,1e-08,3748.9,3748.8,3.11382027]
[1753515835685,1e-08,3748.9,3748.8,3.11482027]
[1753515836481,0.47840001,3748.9,3748.8,2.66852027]
[1753515837288,0.47840001,3748.9,3748.8,5.08052027]
[1753515837801,0.47840001,3748.9,3748.8,2.66852027]
[1753515837978,0.47840001,3748.9,3748.8,5.08052027]
[1753515840701,0.47840001,3748.9,3748.8,2.66852027]
[1753515840999,0.47840001,3748.9,3748.8,5.08052027]
[1753515841000,0.94190001,3748.9,3748.8,5.08052027]
[1753515842268,1.71580001,3748.9,3748.8,0.001]
[1753515859500,4.38324912,3748.9,3748.8,0.001]
[1753515860129,1.71580001,3748.9,3748.8,0.001]
[1753515863749,3.66530001,3748.9,3748.8,0.001]
[1753515864128,1.25230001,3748.9,3748.8,0.001]
[1753515864453,4.09950001,3748.9,3748.8,0.001]
[1753515868149,0.77390001,3748.9,3748.8,3.12152027]
[1753515868341,2.41300001,3748.9,3748.8,0.454]
[1753515868544,2.41300001,3748.9,3748.8,0.001]
[1753515868876,2.87680001,3748.9,3748.8,0.001]
[1753515870554,3.31100001,3748.9,3748.8,0.001]
[1753515876769,3.31100001,3748.9,3748.8,2.66852027]
[1753515876931,3.31100001,3748.9,3748.8,0.001]
[1753515877470,2.87680001,3748.9,3748.8,0.001]
[1753515879662,2.87680001,3748.9,3748.8,2.66852027]
[1753515879850,2.87680001,3748.9,3748.8,0.001]
[1753515880256,2.87680001,3748.9,3748.8,2.66852027]
[1753515881167,2.87680001,3748.9,3748.8,0.001]
[1753515883459,2.87680001,3748.9,3748.8,2.66852027]
[1753515885079,2.87680001,3748.9,3748.8,0.001]
[1753515885752,3.44460001,3748.9,3748.8,0.001]
[1753515888455,3.01040001,3748.9,3748.8,0.001]
[1753515889889,3.01040001,3748.9,3748.8,2.66852027]
[1753515890585,3.01040001,3748.9,3748.8,0.001]
[1753515895862,3.47680001,3748.9,3748.8,0.001]
[1753515899503,3.01040001,3748.9,3748.8,0.001]
[1753515902840,3.47680001,3748.9,3748.8,0.001]
[1753515902993,3.01040001,3748.9,3748.8,0.001]
[1753515909332,0.59740001,3748.9,3748.8,0.001]
[1753515909524,3.00940001,3748.9,3748.8,0.001]
[1753515921270,3.46390001,3748.9,3748.8,0.001]
[1753515922972,3.00940001,3748.9,3748.8,0.001]
[1753515928586,0.13360001,3748.9,3748.8,0.001]
[1753515928771,2.41200001,3748.9,3748.8,3.59072027]
[1753515928949,2.41200001,3748.9,3748.8,0.4586]
[1753515929149,2.41200001,3748.9,3748.8,0.001]
[1753515929564,2.41200001,3748.9,3748.8,2.66852027]
[1753515930860,1e-08,3748.9,3748.8,2.66852027]
[1753515931558,1e-08,3748.9,3748.8,3.12612027]
[1753515935091,0.49360001,3748.9,3748.8,2.66852027]
[1753515935589,1e-08,3748.9,3748.8,2.66852027]
[1753515936096,0.49360001,3748.9,3748.8,2.66852027]
[1753515936774,1e-08,3748.9,3748.8,2.66852027]
[1753515939985,0.49360001,3748.9,3748.8,2.66852027]
[1753515940799,1e-08,3748.9,3748.8,2.66852027]
[1753515942191,0.49360001,3748.9,3748.8,2.66852027]
[1753515944580,0.49360001,3748.9,3748.8,0.001]
[1753515945169,1e-08,3748.9,3748.8,2.66852027]
[1753515945372,1e-08,3748.9,3748.8,3.59072027]
[1753515949016,1e-08,3748.9,3748.8,3.12612027]
[1753515950641,1e-08,3748.9,3748.8,6.78342027]
[1753515950846,1e-08,3748.9,3748.8,6.91702027]
[1753515955940,1e-08,3748.9,3748.8,6.44222027]
[1753515956109,1e-08,3748.9,3748.8,6.91702027]
[1753515957414,1e-08,3748.9,3748.8,6.44222027]
[1753515959114,1e-08,3748.9,3748.8,6.91702027]
[1753515959517,1e-08,3748.9,3748.8,5.97882027]
[1753515959712,1e-08,3748.9,3748.8,6.91702027]
[1753515963459,1e-08,3748.9,3748.8,6.44222027]
[1753515966162,1e-08,3748.9,3748.8,6.91702027]
[1753515966363,1e-08,3748.9,3748.8,9.91702027]
[1753515966580,1e-08,3749.2,3749.1,6.41820682]
[1753515966864,1e-08,3749.2,3749.1,13.43502321]
[1753515967242,1e-08,3749.2,3749.1,14.37322321]
[1753515967442,0.002,3749.5,3749.1,14.37322321]
[1753515967443,0.002,3749.5,3749.3,6.41806453]
[1753515967645,0.002,3749.5,3749.3,8.96266453]
[1753515967967,0.002,3749.5,3749.3,9.90086453]
[1753515968764,0.002,3749.5,3749.3,10.10256975]
[1753515977549,0.002,3749.5,3749.3,9.90086453]
[1753515979283,0.002,3749.5,3749.3,9.42606453]
[1753515979489,0.4855,3749.4,3749.3,2.80076453]
[1753515979801,0.9489,3749.4,3749.3,5.21176453]
[1753515982794,0.9489,3749.4,3749.3,2.80076453]
[1753515983002,0.9489,3749.4,3749.3,5.21176453]
[1753515984304,0.4855,3749.4,3749.3,5.21176453]
[1753515984800,0.002,3749.4,3749.3,5.66836453]
[1753515984964,0.002,3749.4,3749.3,6.95706453]
[1753515985301,0.002,3749.4,3749.3,6.49086453]
[1753515986090,0.4855,3749.4,3749.3,2.80076453]
[1753515986297,0.9489,3749.4,3749.3,5.21176453]
[1753515989987,0.9489,3749.4,3749.3,2.5446]
[1753515990400,0.9489,3749.4,3749.3,0.1336]
[1753515990594,0.9489,3749.4,3749.3,2.5446]
[1753515990793,0.9489,3749.4,3749.3,0.1336]
[1753515992389,0.9489,3749.4,3749.1,0.001]
[1753515992594,1.7285,3749.3,3749.1,0.001]
[1753515992792,0.9469,3749.3,3749.1,0.001]
[1753515993006,0.9469,3749.2,3749.1,0.001]
[1753515993514,1.7285,3749.2,3749.1,0.001]
[1753515994114,1.8621,3749.2,3749.1,0.001]
[1753516009061,4.2741,3749.2,3749.1,0.001]
[1753516009940,4.2761,3749.2,3749.1,0.001]
[1753516010858,6.92413567,3749.2,3749.1,0.001]
[1753516017156,1.4007,3749.2,3749.1,0.001]
[1753516017368,0.1356,3749.2,3749.1,0.001]
[1753516017545,2.414,3749.2,3749.1,3.58060682]
[1753516017752,2.414,3749.2,3749.1,0.4385]
[1753516018159,2.414,3749.2,3749.1,0.001]
[1753516019079,3.4584,3749.2,3749.1,0.001]
[1753516020547,3.0142,3749.2,3749.1,0.001]
[1753516021773,2.5486,3749.2,3749.1,0.001]
[1753516022744,3.0142,3749.2,3749.1,0.001]
[1753516023143,0.6012,3749.2,3749.1,0.001]
[1753516023472,3.0132,3749.2,3749.1,0.001]
[1753516028088,2.5476,3749.2,3749.1,0.001]
[1753516029072,3.0132,3749.2,3749.1,0.001]
[1753516034381,3.0132,3749.2,3749.1,2.66830682]
[1753516034752,3.0132,3749.2,3749.1,0.001]
[1753516043299,3.441,3749.2,3749.1,0.001]
[1753516045008,6.10823567,3749.2,3749.1,0.001]
[1753516047321,3.441,3749.2,3749.1,0.001]
[1753516047522,6.10823567,3749.2,3749.1,0.001]
[1753516049017,10.48533567,3749.2,3749.1,0.001]
[1753516049203,8.07333567,3749.2,3749.1,0.001]
[1753516049411,9.50753567,3749.2,3749.1,0.001]
[1753516049811,9.93533567,3749.2,3749.1,0.001]
[1753516052730,10.48533567,3749.2,3749.1,0.001]
[1753516053029,40.73541703,3749.2,3749.1,0.001]
[1753516053918,10.73541703,3749.2,3749.1,0.001]
[1753516057034,10.48533567,3749.2,3749.1,0.001]
[1753516057630,10.73507507,3749.2,3749.1,0.001]
[1753516057933,40.73507507,3749.2,3749.1,0.001]
[1753516062218,40.48533567,3749.2,3749.1,0.001]
[1753516064552,40.73491054,3749.2,3749.1,0.001]
[1753516066923,38.32291054,3749.2,3749.1,0.001]
[1753516067124,40.73491054,3749.2,3749.1,0.001]
[1753516070190,40.73491054,3749.2,3748.8,0.001]
[1753516070191,3.21744911,3748.9,3748.8,0.001]
[1753516070366,9.59554911,3748.9,3748.8,0.001]
[1753516070565,40.56854911,3748.9,3748.8,0.001]
[1753516070955,40.70155168,3748.9,3748.8,0.001]
[1753516073692,10.70155168,3748.9,3748.8,0.001]
[1753516074001,40.70155168,3748.9,3748.8,0.001]
[1753516074967,10.70155168,3748.9,3748.8,0.001]
[1753516075287,40.70155168,3748.9,3748.8,0.001]
[1753516075468,40.95126978,3748.9,3748.8,0.001]
[1753516075786,10.95126978,3748.9,3748.8,0.001]
[1753516075987,40.95126978,3748.9,3748.8,0.001]
[1753516076367,40.47826978,3748.9,3748.8,0.001]
[1753516076761,40.34526721,3748.9,3748.8,0.001]
[1753516076960,10.4796571,3748.9,3748.8,0.001]
[1753516081861,40.9526571,3748.9,3748.8,0.001]
[1753516083190,38.5406571,3748.9,3748.8,0.001]
[1753516083394,40.9526571,3748.9,3748.8,0.001]
[1753516084610,10.34526721,3748.9,3748.8,0.001]
[1753516085505,10.47692099,3748.9,3748.8,0.001]
[1753516088705,8.06492099,3748.9,3748.8,0.001]
[1753516088907,10.47692099,3748.9,3748.8,0.001]
[1753516089907,10.34526721,3748.9,3748.8,0.001]
[1753516090481,10.48112231,3748.9,3748.8,0.001]
[1753516095026,40.48112231,3748.9,3748.8,0.001]
[1753516095323,40.23140421,3748.9,3748.8,0.001]
[1753516095527,38.06948017,3748.9,3748.8,0.001]
[1753516095697,10.48148017,3748.9,3748.8,0.001]
[1753516099596,10.48156098,3748.9,3748.8,0.001]
[1753516103439,11.04465676,3748.9,3748.8,0.001]
[1753516103741,40.90356098,3748.9,3748.8,0.001]
[1753516104117,41.04465664,3748.9,3748.8,0.001]
[1753516104516,40.90356098,3748.9,3748.8,0.001]
[1753516104739,41.04466105,3748.9,3748.8,0.001]
[1753516105639,11.04466105,3748.9,3748.8,0.001]
[1753516105843,41.04466105,3748.9,3748.8,0.001]
[1753516107524,40.90880595,3748.9,3748.8,0.001]
[1753516110238,40.90879925,3748.9,3748.8,0.001]
[1753516112931,40.90879925,3748.9,3748.8,1e-08]
[1753516113956,10.90879925,3748.9,3748.8,1e-08]
[1753516114161,40.90879925,3748.9,3748.8,1e-08]
[1753516114357,38.06589925,3748.9,3748.8,1e-08]
[1753516114563,39.98679925,3748.9,3748.8,1e-08]
[1753516114964,10.47789925,3748.9,3748.8,1e-08]
[1753516115167,40.47789925,3748.9,3748.8,1e-08]
[1753516115469,40.90879925,3748.9,3748.8,1e-08]
[1753516116657,40.47789925,3748.9,3748.8,1e-08]
[1753516119774,36.74229925,3748.9,3748.8,0.43100001]
[1753516119974,39.15429925,3748.9,3748.8,0.43100001]
[1753516120373,39.15429925,3748.9,3748.8,1e-08]
[1753516121355,39.64539925,3748.9,3748.8,1e-08]
[1753516123350,9.64539925,3748.9,3748.8,1e-08]
[1753516123581,39.64527072,3748.9,3748.8,1e-08]
[1753516124889,39.50430588,3748.9,3748.8,1e-08]
[1753516125202,39.64510799,3748.9,3748.8,1e-08]
[1753516125359,39.64510802,3748.9,3748.8,1e-08]
[1753516125701,37.23310802,3748.9,3748.8,1e-08]
[1753516125992,39.64510802,3748.9,3748.8,1e-08]
[1753516126190,37.23310802,3748.9,3748.8,1e-08]
[1753516126394,39.64510802,3748.9,3748.8,1e-08]
[1753516128240,39.64514324,3748.9,3748.8,1e-08]
[1753516128662,37.23314324,3748.9,3748.8,1e-08]
[1753516128866,9.01306349,3748.9,3748.8,0.46000001]
[1753516129096,9.01306349,3748.9,3748.8,0.92940001]
[1753516129891,9.1540537,3748.9,3748.8,0.92940001]
[1753516130283,9.01306349,3748.9,3748.8,0.92940001]
[1753516130785,9.01306349,3748.9,3748.8,0.45460001]
[1753516132620,6.60106349,3748.9,3748.8,0.45460001]
[1753516132922,9.0130626,3748.9,3748.8,0.45460001]
[1753516133129,6.6010626,3748.9,3748.8,0.45460001]
[1753516133315,9.0130626,3748.9,3748.8,0.45460001]
[1753516133616,8.76304911,3748.9,3748.8,0.45460001]
[1753516134212,2.66759143,3748.7,3748.6,0.7723]
[1753516134413,8.21319143,3748.7,3748.6,0.46]
[1753516136833,5.80119143,3748.7,3748.6,0.46]
[1753516137017,8.21319143,3748.7,3748.6,0.46]
[1753516138130,2.66773376,3748.5,3748.4,0.7654]
[1753516138333,8.07973376,3748.5,3748.4,0.001]
[1753516138490,8.66603376,3748.5,3748.4,0.001]
[1753516143000,9.10053376,3748.5,3748.4,0.001]
[1753516147515,9.35058975,3748.5,3748.4,0.001]
[1753516147735,39.35058975,3748.5,3748.4,0.001]
[1753516149497,38.91608975,3748.5,3748.4,0.001]
[1753516152432,39.46608975,3748.5,3748.4,0.001]
[1753516153837,8.46338975,3748.5,3748.4,0.461]
[1753516154137,8.21333376,3748.5,3748.4,0.9358]
[1753516154526,5.80133376,3748.5,3748.4,0.9358]
[1753516154726,3.1336,3748.5,3748.4,0.9358]
[1753516154909,8.21333376,3748.5,3748.4,0.9358]
[1753516155516,3.1336,3748.5,3748.4,0.9358]
[1753516155722,5.5456,3748.5,3748.4,0.9358]
[1753516156536,8.21333376,3748.5,3748.4,0.9358]
[1753516159815,5.80133376,3748.5,3748.4,0.9358]
[1753516160011,8.21333376,3748.5,3748.4,0.9358]
[1753516161246,5.5456,3748.5,3748.4,0.461]
[1753516161743,8.21333376,3748.5,3748.4,0.461]
[1753516163341,5.80133376,3748.5,3748.4,0.461]
[1753516163542,8.21333376,3748.5,3748.4,0.461]
[1753516164947,5.5456,3748.5,3748.4,0.461]
[1753516165513,8.21333376,3748.5,3748.4,0.461]
[1753516166646,5.80133376,3748.5,3748.4,0.461]
[1753516166852,8.21333376,3748.5,3748.4,0.461]
[1753516168263,5.5456,3748.5,3748.4,0.461]
[1753516168449,8.21333376,3748.5,3748.4,0.461]
[1753516169055,8.21333376,3748.5,3748.4,0.001]
[1753516170238,5.5456,3748.5,3748.4,0.001]
[1753516170626,8.21333376,3748.5,3748.4,0.001]
[1753516171738,5.80133376,3748.5,3748.4,0.001]
[1753516171939,8.21333376,3748.5,3748.4,0.001]
[1753516172462,8.70773376,3748.5,3748.4,0.001]
[1753516173757,9.16973376,3748.5,3748.4,0.001]
[1753516177335,8.70773376,3748.5,3748.4,0.001]
[1753516177932,9.16973376,3748.5,3748.4,0.001]
[1753516182083,8.70773376,3748.5,3748.4,0.001]
[1753516186677,8.21333376,3748.5,3748.4,0.001]
[1753516187671,8.70773376,3748.5,3748.4,0.001]
[1753516192674,6.29573376,3748.5,3748.4,0.001]
[1753516192879,8.70773376,3748.5,3748.4,0.001]
[1753516193884,9.15873376,3748.5,3748.4,0.001]
[1753516196388,8.70773376,3748.5,3748.4,0.001]
[1753516201368,9.15873376,3748.5,3748.4,0.001]
[1753516202183,6.74673376,3748.5,3748.4,0.001]
[1753516202384,9.15873376,3748.5,3748.4,0.001]
[1753516202680,8.70773376,3748.5,3748.4,0.001]
[1753516203254,8.21333376,3748.5,3748.4,0.001]
[1753516203583,3.1336,3748.5,3748.4,0.451]
[1753516203889,8.21333376,3748.5,3748.4,0.451]
[1753516204255,5.5456,3748.5,3748.4,0.451]
[1753516204984,3.1336,3748.5,3748.4,0.451]
[1753516205188,5.5456,3748.5,3748.4,0.451]
[1753516207110,0.1336,3748.5,3748.4,0.001]
[1753516207277,2.412,3748.5,3748.4,1.724]
[1753516210094,0.1336,3748.7,3748.4,1.2492]
[1753516210300,2.412,3748.5,3748.4,0.7992]
[1753516210999,2.412,3748.5,3748.4,1.724]
[1753516212402,0.1336,3748.7,3748.4,1.724]
[1753516212602,0.002,3748.8,3748.6,2.6676108]
[1753516212903,0.002,3748.8,3748.7,2.66759143]
[1753516213074,2.414,3748.8,3748.7,2.66759143]
[1753516213273,2.414,3748.8,3748.7,0.9248]
[1753516216509,2.414,3748.8,3748.7,0.45]
[1753516216808,2.414,3748.8,3748.7,0.9248]
[1753516218004,2.414,3748.8,3748.7,0.45]
[1753516221107,2.414,3748.8,3748.6,0.7643]
[1753516221478,2.414,3748.8,3748.6,1.207]
[1753516225389,2.8852,3748.8,3748.6,1.207]
[1753516225719,2.414,3748.8,3748.6,1.207]
[1753516226296,2.8852,3748.8,3748.6,1.207]
[1753516227320,2.8852,3748.8,3748.6,0.7643]
[1753516228887,2.8852,3748.8,3748.6,4.11945724]
[1753516232233,2.8852,3748.8,3748.6,0.7643]
[1753516232539,0.4712,3748.7,3748.6,0.7643]
[1753516232909,0.4712,3748.7,3748.5,3.48875724]
[1753516233107,0.9002,3748.6,3748.4,0.001]
[1753516233596,0.429,3748.6,3748.4,0.001]
[1753516233790,0.4712,3748.5,3748.4,0.001]
[1753516234431,0.4712,3748.5,3748.4,2.66880493]
[1753516234724,0.4712,3748.7,3748.5,2.66772789]
[1753516234928,0.4712,3748.7,3748.5,3.35515724]
[1753516235230,0.4712,3748.6,3748.5,3.35515724]
[1753516238354,0.4712,3748.6,3748.5,6.022891]
[1753516238508,2.5476,3748.8,3748.5,6.022891]
[1753516238843,0.4712,3748.7,3748.5,6.022891]
[1753516240705,0.4712,3748.7,3748.5,3.35515724]
[1753516240905,0.4712,3748.7,3748.5,6.02288923]
[1753516241511,2.5476,3748.8,3748.5,3.35515724]
[1753516241712,0.4712,3748.7,3748.5,6.02286952]
[1753516242521,0.4712,3748.7,3748.5,3.35515724]
[1753516243736,0.4712,3748.7,3748.5,6.02287461]
[1753516244746,0.4712,3748.7,3748.5,3.35515724]
[1753516245478,0.4712,3748.6,3748.5,3.35515724]
[1753516249086,2.5476,3748.8,3748.5,3.35515724]
[1753516249285,3.0468,3748.8,3748.5,3.35515724]
[1753516249582,2.5476,3748.8,3748.5,3.35515724]
[1753516249762,2.5476,3748.8,3748.5,6.02285644]
[1753516250488,2.5476,3748.8,3748.5,3.35515724]
[1753516250652,3.0468,3748.8,3748.5,6.02282793]
[1753516251092,0.4992,3748.7,3748.5,6.02282793]
[1753516251470,0.4992,3748.7,3748.5,6.02382793]
[1753516252289,0.4992,3748.7,3748.5,3.35615724]
[1753516252494,0.4992,3748.7,3748.5,6.02387197]
[1753516253054,0.4992,3748.6,3748.5,2.66871473]
[1753516253253,0.4992,3748.6,3748.5,6.023891]
[1753516254290,3.0468,3748.8,3748.6,2.66766259]
[1753516254579,3.0468,3748.8,3748.7,2.66759143]
[1753516254788,3.0468,3748.8,3748.6,2.66764578]
[1753516255683,3.0468,3748.8,3748.7,2.66759143]
[1753516255870,3.0458,3748.8,3748.7,2.66759143]
[1753516256588,3.0458,3748.8,3748.5,6.48222335]
[1753516257287,3.0458,3748.8,3748.6,2.66765468]
[1753516258957,2.5466,3748.8,3748.6,2.66765468]
[1753516259291,0.4992,3748.7,3748.6,2.66765468]
[1753516260288,0.4992,3748.7,3748.5,6.48227906]
[1753516260593,0.4992,3748.7,3748.5,6.02387906]
[1753516260889,0.4992,3748.6,3748.5,6.02387906]
[1753516261256,3.0458,3748.8,3748.6,2.66763328]
[1753516261492,0.4992,3748.7,3748.6,2.66763328]
[1753516263590,2.5466,3748.8,3748.7,2.66759143]
[1753516263757,2.5466,3748.8,3748.5,6.02388752]
[1753516264089,3.0458,3748.8,3748.5,6.48228752]
[1753516264653,3.0458,3748.8,3748.5,6.02388752]
[1753516264891,3.0458,3748.8,3748.5,3.81455724]
[1753516265288,2.5466,3748.8,3748.5,3.81455724]
[1753516265491,0.4992,3748.7,3748.5,3.81455724]
[1753516265657,0.4992,3748.7,3748.5,3.35615724]
[1753516266056,0.4992,3748.7,3748.5,6.02388901]
[1753516266281,0.4992,3748.7,3748.5,3.35615724]
[1753516266484,0.4992,3748.7,3748.5,6.02387334]
[1753516266685,0.4992,3748.7,3748.5,3.35615724]
[1753516267309,0.4992,3748.7,3748.5,6.02382178]
[1753516268507,0.002,3748.8,3748.7,2.66759143]
[1753516269008,0.002,3748.8,3748.7,3.60079143]
[1753516269819,0.002,3748.8,3748.7,3.12599143]
[1753516274414,0.002,3748.8,3748.7,0.4584]
[1753516274570,0.002,3748.8,3748.6,2.80124265]
[1753516274777,0.002,3748.8,3748.6,3.26064265]
[1753516274977,0.002,3748.8,3748.7,2.66759143]
[1753516275223,0.002,3748.8,3748.6,3.26064586]
[1753516276931,0.5012,3748.8,3748.6,0.593]
[1753516277424,0.5012,3748.8,3748.6,3.26065097]
[1753516278596,0.5012,3748.8,3748.7,2.66759143]
[1753516279131,0.5012,3748.8,3748.6,3.26065211]
[1753516281637,0.5012,3748.8,3748.6,0.593]
[1753516282238,0.5012,3748.8,3748.6,3.2605965]
[1753516283486,0.002,3748.8,3748.6,0.1346]
[1753516283755,0.002,3748.8,3748.6,0.001]
[1753516283756,0.9018,3748.7,3748.6,0.001]
[1753516283956,3.56939143,3748.7,3748.6,0.001]
[1753516284316,0.9018,3748.7,3748.6,0.001]
[1753516285267,4.33949143,3748.7,3748.6,0.001]
[1753516289268,7.33949143,3748.7,3748.6,0.001]
[1753516289559,9.75049143,3748.7,3748.6,0.001]
[1753516292660,10.30049143,3748.7,3748.6,0.001]
[1753516292860,10.55013614,3748.7,3748.6,0.001]
[1753516295026,40.55013614,3748.7,3748.6,0.001]
[1753516298328,10.55013614,3748.7,3748.6,0.001]
[1753516298524,40.55013614,3748.7,3748.6,0.001]
[1753516303363,10.55013614,3748.7,3748.6,0.001]
[1753516303665,40.55013614,3748.7,3748.6,0.001]
[1753516304850,10.55013614,3748.7,3748.6,0.001]
[1753516305059,40.55013614,3748.7,3748.6,0.001]
[1753516307575,10.55013614,3748.7,3748.6,0.001]
[1753516307752,40.55013614,3748.7,3748.6,0.001]
[1753516311982,40.63113614,3748.7,3748.6,0.001]
[1753516312606,36.21766259,3748.6,3748.5,1e-08]
[1753516312751,37.38652764,3748.6,3748.5,1e-08]
[1753516312952,38.46392764,3748.6,3748.5,1e-08]
[1753516315880,8.46392764,3748.6,3748.5,1e-08]
[1753516316079,38.46392764,3748.6,3748.5,1e-08]
[1753516316750,41.82196824,3748.6,3748.5,1e-08]
[1753516320403,38.46392764,3748.6,3748.5,1e-08]
[1753516320566,41.82196824,3748.6,3748.5,1e-08]
[1753516321614,7.00560493,3748.4,3748.3,1e-08]
[1753516321761,39.80696998,3748.4,3748.3,1e-08]
[1753516321968,40.88436998,3748.4,3748.3,1e-08]
[1753516324677,40.634909,3748.4,3748.3,1e-08]
[1753516324975,40.88487008,3748.4,3748.3,1e-08]
[1753516325511,47.94487008,3748.4,3748.3,1e-08]
[1753516325808,48.09482867,3748.4,3748.3,1e-08]
[1753516327112,18.09482867,3748.4,3748.3,1e-08]
[1753516327318,62.59482867,3748.4,3748.3,1e-08]
[1753516327745,62.5947737,3748.4,3748.3,1e-08]
[1753516329233,32.5947737,3748.4,3748.3,1e-08]
[1753516329436,62.5947737,3748.4,3748.3,1e-08]
[1753516332096,61.50207008,3748.4,3748.3,0.46780001]
[1753516333012,62.00017008,3748.4,3748.3,1e-08]
[1753516333397,64.80717008,3748.4,3748.3,1e-08]
[1753516333598,61.99986903,3748.4,3748.3,1e-08]
[1753516336642,59.58786903,3748.4,3748.3,1e-08]
[1753516336846,61.99986903,3748.4,3748.3,1e-08]
[1753516340652,61.99993831,3748.4,3748.3,1e-08]
[1753516342143,62.1498779,3748.4,3748.3,1e-08]
[1753516345306,62.5942779,3748.4,3748.3,1e-08]
[1753516345650,6.21837442,3747.6,3747.4,0.4711]
[1753516345849,8.88018306,3747.6,3747.4,0.001]
[1753516346309,23.38018306,3747.6,3747.4,0.001]
[1753516346510,23.38018306,3747.6,3747.5,0.9403]
[1753516346706,8.88018306,3747.6,3747.5,0.9403]
[1753516346926,9.02112329,3747.6,3747.5,0.9403]
[1753516347310,8.88018306,3747.6,3747.5,0.9403]
[1753516348114,9.02113045,3747.6,3747.5,0.9403]
[1753516348314,6.35932181,3747.6,3747.5,0.9403]
[1753516348628,9.02237926,3747.6,3747.5,0.9403]
[1753516349241,6.60937926,3747.6,3747.5,0.9403]
[1753516349413,9.02237926,3747.6,3747.5,0.9403]
[1753516350149,6.60937926,3747.6,3747.5,0.9403]
[1753516350358,9.02237926,3747.6,3747.5,0.9403]
[1753516350575,9.02237926,3747.6,3747.5,0.4711]
[1753516350860,7.08857926,3747.6,3747.5,0.001]
[1753516351068,39.50157926,3747.6,3747.5,0.001]
[1753516351271,39.25152181,3747.6,3747.5,0.001]
[1753516351551,39.50161578,3747.6,3747.5,0.001]
[1753516351724,39.94601578,3747.6,3747.5,0.001]
[1753516352536,9.94601578,3747.6,3747.5,0.001]
[1753516352749,39.94601578,3747.6,3747.5,0.001]
[1753516355537,40.07961578,3747.6,3747.5,0.001]
[1753516356064,39.63521578,3747.6,3747.5,0.001]
[1753516357265,39.63518234,3747.6,3747.5,0.001]
[1753516360276,39.63514381,3747.6,3747.5,0.001]
[1753516365351,9.63514381,3747.6,3747.5,0.001]
[1753516365882,39.63514381,3747.6,3747.5,0.001]
[1753516366103,39.63497337,3747.6,3747.5,0.001]
[1753516367956,36.74277337,3747.6,3747.5,0.001]
[1753516368146,36.74277337,3747.6,3747.5,0.452]
[1753516368147,36.19277337,3747.6,3747.5,0.452]
[1753516368477,39.15477337,3747.6,3747.5,0.9216]
[1753516368704,9.15477337,3747.6,3747.5,0.9216]
[1753516368984,39.15477337,3747.6,3747.5,0.9216]
[1753516370081,39.15477337,3747.6,3747.5,0.452]
[1753516370445,39.62007337,3747.6,3747.5,0.001]
[1753516370646,40.07817337,3747.6,3747.5,0.001]
[1753516372793,10.07817337,3747.6,3747.5,0.001]
[1753516372995,40.07817337,3747.6,3747.5,0.001]
[1753516373600,40.07817337,3747.6,3747.5,1e-08]
[1753516373763,10.07817337,3747.6,3747.5,1e-08]
[1753516374091,40.07817337,3747.6,3747.5,1e-08]
[1753516379484,40.07817337,3747.6,3747.4,1e-08]
[1753516379485,35.66844563,3747.5,3747.4,1e-08]
[1753516379683,39.39564458,3747.5,3747.4,1e-08]
[1753516379884,38.93754458,3747.5,3747.4,1e-08]
[1753516380289,39.39564458,3747.5,3747.4,1e-08]
[1753516380475,39.1459079,3747.5,3747.4,1e-08]
[1753516380680,39.39619588,3747.5,3747.4,1e-08]
[1753516381563,38.47279588,3747.5,3747.4,0.45100001]
[1753516381989,8.47279588,3747.5,3747.4,0.45100001]
[1753516382208,38.47279588,3747.5,3747.4,0.45100001]
[1753516382683,38.62298049,3747.5,3747.4,0.45100001]
[1753516383966,38.47279588,3747.5,3747.4,0.45100001]
[1753516384168,36.05979588,3747.5,3747.4,0.45100001]
[1753516384370,38.47279588,3747.5,3747.4,0.45100001]
[1753516385114,38.47279588,3747.5,3747.4,1e-08]
[1753516386596,8.47279588,3747.5,3747.4,1e-08]
[1753516386912,38.47279588,3747.5,3747.4,0.45100001]
[1753516388313,38.47274869,3747.5,3747.4,0.45100001]
[1753516388876,36.05974869,3747.5,3747.4,1e-08]
[1753516389076,38.47174869,3747.5,3747.4,1e-08]
[1753516389910,36.05974869,3747.5,3747.4,1e-08]
[1753516390088,38.47174869,3747.5,3747.4,1e-08]
[1753516394576,39.48704869,3747.5,3747.4,1e-08]
[1753516397124,39.34599506,3747.5,3747.4,1e-08]